fUSD/lending_fUSD_20250530
["ID","MTS","AMOUNT","RATE_DAILY","PERIOD"]
[363186031,1748619051192,-1544.23,0.00021917,2]
[363186032,1748619051202,-1169.42,0.00021917,2]
[363186033,1748619051211,-1406.27,0.00021917,2]
[363186034,1748619051220,-826.36,0.00021917,2]
[363186035,1748619051232,-1175.33,0.00021917,2]
[363186036,1748619051241,-3295.64,0.00021917,2]
[363186037,1748619051251,-424.68521743,0.00021917,2]
[363186038,1748619051260,-420.0,0.00021917,2]
[363186039,1748619051270,-420.0,0.00021917,2]
[363186040,1748619051280,-540.20194575,0.00021917,2]
[363186041,1748619051289,-1761.11,0.00021917,2]
[363186042,1748619051299,-3573.53,0.00021917,2]
[363186043,1748619051308,-660.71,0.00021917,2]
[363186044,1748619051318,-738.85,0.00021917,2]
[363186045,1748619051327,-1034.84,0.00021917,2]
[363186046,1748619051337,-1151.03,0.00021917,2]
[363186047,1748619051346,-9251.83,0.00021917,2]
[363186048,1748619051356,-574.28234875,0.00021917,2]
[363186049,1748619051365,-420.0,0.00021917,2]
[363186050,1748619051375,-2000.0,0.00021917,2]
[363186051,1748619051384,-420.0,0.00021917,2]
[363186052,1748619051393,-772.03,0.00021917,2]
[363186053,1748619051403,-420.0,0.00021917,2]
[363186054,1748619051412,-490.63,0.00021917,2]
[363186055,1748619051421,-720.83,0.00021917,2]
[363186056,1748619051431,-1360.32,0.00021917,2]
[363186057,1748619051441,-420.0,0.00021917,2]
[363186058,1748619051450,-2486.32,0.00021917,2]
[363186059,1748619051460,-723.88,0.00021917,2]
[363186060,1748619051469,-567.24,0.00021917,2]
[363186061,1748619051481,-420.0,0.00021917,2]
[363186062,1748619051491,-420.0,0.00021917,2]
[363186063,1748619051501,-420.0,0.00021917,2]
[363186064,1748619051510,-4470.51,0.00021917,2]
[363186065,1748619051520,-420.0,0.00021917,2]
[363186066,1748619051530,-420.0,0.00021917,2]
[363186067,1748619051540,-420.0,0.00021917,2]
[363186068,1748619051549,-420.0,0.00021917,2]
[363186069,1748619051559,-1446.13,0.00021917,2]
[363186070,1748619051568,-2304.2,0.00021917,2]
[363186071,1748619051578,-420.0,0.00021917,2]
[363186072,1748619051587,-1389.12,0.00021917,2]
[363186073,1748619051597,-302.56356135,0.00021917,2]
[363186074,1748619051606,-420.0,0.00021917,2]
[363186075,1748619051615,-420.0,0.00021917,2]
[363186076,1748619051625,-420.0,0.00021917,2]
[363186077,1748619051634,-1054.71,0.00021917,2]
[363186078,1748619051644,-420.0,0.00021917,2]
[363186079,1748619051653,-428.22161238,0.00021917,2]
[363186080,1748619051663,-990.01,0.00021917,2]
[363186081,1748619051672,-1680.37,0.00021917,2]
[363186082,1748619051682,-521.76,0.00021917,2]
[363186083,1748619051691,-4095.54,0.00021917,2]
[363186084,1748619051701,-1486.66,0.00021917,2]
[363186085,1748619051710,-1336.51,0.00021917,2]
[363186086,1748619051720,-420.0,0.00021917,2]
[363186087,1748619051731,-1487.37,0.00021917,2]
[363186088,1748619051740,-420.0,0.00021917,2]
[363186089,1748619051750,-2771.35,0.00021917,2]
[363186090,1748619051760,-4189.49,0.00021917,2]
[363186091,1748619051769,-420.0,0.00021917,2]
[363186092,1748619051779,-420.0,0.00021917,2]
[363186093,1748619051793,-420.0,0.00021917,2]
[363186094,1748619051803,-629.45,0.00021917,2]
[363186095,1748619051813,-2997.14,0.00021917,2]
[363186096,1748619051825,-420.0,0.00021917,2]
[363186097,1748619051835,-1125.7,0.00021917,2]
[363186098,1748619051845,-1026.77,0.00021917,2]
[363186099,1748619051854,-614.16,0.00021917,2]
[363186100,1748619051865,-420.0,0.00021917,2]
[363186101,1748619051875,-420.27942599,0.00021917,2]
[363186102,1748619051885,-7561.37,0.00021917,2]
[363186103,1748619051894,-420.0,0.00021917,2]
[363186104,1748619051905,-1258.89,0.00021917,2]
[363186105,1748619051914,-428.52645364,0.00021917,2]
[363186106,1748619051924,-423.59827004,0.00021917,2]
[363186107,1748619051933,-1075.29,0.00021917,2]
[363186108,1748619051943,-760.57,0.00021917,2]
[363186109,1748619051953,-420.0,0.00021917,2]
[363186110,1748619051962,-3180.63,0.00021917,2]
[363186111,1748619051972,-1927.78,0.00021917,2]
[363186112,1748619051983,-421.55553569,0.00021917,2]
[363186113,1748619051992,-1656.75,0.00021917,2]
[363186114,1748619052002,-420.0,0.00021917,2]
[363186115,1748619052011,-641.68,0.00021917,2]
[363186116,1748619052020,-420.0,0.00021917,2]
[363186117,1748619052031,-1318.91,0.00021917,2]
[363186118,1748619052040,-1139.98,0.00021917,2]
[363186119,1748619052051,-798.56,0.00021917,2]
[363186120,1748619052060,-1082.24,0.00021917,2]
[363186121,1748619052069,-718.05,0.00021917,2]
[363186122,1748619052079,-420.0,0.00021917,2]
[363186123,1748619052088,-420.0,0.00021917,2]
[363186124,1748619052098,-420.0,0.00021917,2]
[363186125,1748619052107,-420.0,0.00021917,2]
[363186126,1748619052116,-3419.97,0.00021917,2]
[363186127,1748619052126,-1239.27,0.00021917,2]
[363186128,1748619052137,-1074.24,0.00021917,2]
[363186129,1748619052146,-420.0,0.00021917,2]
[363186130,1748619052156,-671.13,0.00021917,2]
[363186131,1748619052165,-151.0,0.00021917,2]
[363186132,1748619052175,-1848.95,0.00021917,2]
[363186133,1748619052184,-2486.27,0.00021917,2]
[363186134,1748619052194,-151.0,0.00021917,2]
[363186135,1748619052203,-420.0,0.00021917,2]
[363186136,1748619052212,-420.0,0.00021917,2]
[363186137,1748619052221,-151.0,0.00021917,2]
[363186138,1748619052233,-424.66926536,0.00021917,2]
[363186139,1748619052242,-214.66781474,0.00021917,2]
[363186140,1748619052252,-151.0,0.00021917,2]
[363186141,1748619052261,-420.0,0.00021917,2]
[363186142,1748619052270,-420.0,0.00021917,2]
[363186143,1748619052280,-1822.33,0.00021917,2]
[363186144,1748619052290,-420.0,0.00021917,2]
[363186145,1748619052300,-420.0,0.00021917,2]
[363186146,1748619052309,-420.0,0.00021917,2]
[363186147,1748619052319,-151.0,0.00021917,2]
[363186148,1748619052329,-151.0,0.00021917,2]
[363186149,1748619052339,-4083.38,0.00021917,2]
[363186150,1748619052349,-1501.86,0.00021917,2]
[363186151,1748619052359,-420.0,0.00021917,2]
[363186152,1748619052368,-4868.11,0.00021917,2]
[363186153,1748619052378,-1358.16,0.00021917,2]
[363186154,1748619052388,-4025.56,0.00021917,2]
[363186155,1748619052397,-2713.7,0.00021917,2]
[363186156,1748619052408,-423.23983206,0.00021917,2]
[363186157,1748619052418,-420.0,0.00021917,2]
[363186158,1748619052445,-420.0,0.00021917,2]
[363186159,1748619052454,-420.0,0.00021917,2]
[363186160,1748619052464,-489.31,0.00021917,2]
[363186161,1748619052473,-420.0,0.00021917,2]
[363186162,1748619052484,-420.0,0.00021917,2]
[363186163,1748619052493,-420.0,0.00021917,2]
[363186164,1748619052503,-742.91,0.00021917,2]
[363186165,1748619052512,-420.0,0.00021917,2]
[363186166,1748619052521,-420.0,0.00021917,2]
[363186167,1748619052530,-420.0,0.00021917,2]
[363186168,1748619052539,-703.73,0.00021917,2]
[363186169,1748619052548,-151.0,0.00021917,2]
[363186170,1748619052557,-151.0,0.00021917,2]
[363186171,1748619052566,-802.33,0.00021917,2]
[363186172,1748619052575,-420.0,0.00021917,2]
[363186173,1748619052584,-420.0,0.00021917,2]
[363186174,1748619052593,-937.93,0.00021917,2]
[363186175,1748619052604,-2531.82,0.00021917,2]
[363186176,1748619052613,-420.0,0.00021917,2]
[363186177,1748619052622,-285.64895881,0.00021917,2]
[363186178,1748619052631,-422.65781745,0.00021917,2]
[363186179,1748619052640,-420.0,0.00021917,2]
[363186180,1748619052650,-360.95017308,0.00021917,2]
[363186181,1748619052659,-830.27,0.00021917,2]
[363186182,1748619052669,-420.0,0.00021917,2]
[363186183,1748619052678,-420.0,0.00021917,2]
[363186184,1748619052688,-422.8962042,0.00021917,2]
[363186185,1748619052698,-421.20647887,0.00021917,2]
[363186186,1748619052707,-420.0,0.00021917,2]
[363186187,1748619052717,-420.0,0.00021917,2]
[363186188,1748619052727,-420.68218417,0.00021917,2]
[363186189,1748619052737,-420.0,0.00021917,2]
[363186190,1748619052746,-420.0,0.00021917,2]
[363186191,1748619052756,-420.0,0.00021917,2]
[363186192,1748619052765,-7051.39,0.00021917,2]
[363186193,1748619052775,-622.77,0.00021917,2]
[363186194,1748619052789,-420.0,0.00021917,2]
[363186195,1748619052798,-961.82,0.00021917,2]
[363186196,1748619052808,-420.96953135,0.00021917,2]
[363186197,1748619052817,-420.0,0.00021917,2]
[363186198,1748619052827,-420.0,0.00021917,2]
[363186199,1748619052836,-1538.8,0.00021917,2]
[363186200,1748619052845,-420.0,0.00021917,2]
[363186201,1748619052855,-420.0,0.00021917,2]
[363186202,1748619052865,-420.0,0.00021917,2]
[363186203,1748619052874,-421.95220772,0.00021917,2]
[363186204,1748619052883,-19030.44,0.00021917,2]
[363186205,1748619052892,-420.0,0.00021917,2]
[363186206,1748619052902,-420.0,0.00021917,2]
[363186207,1748619052911,-422.27106189,0.00021917,2]
[363186208,1748619052996,-425.35490751,0.00021917,2]
[363186209,1748619053006,-426.18682925,0.00021917,2]
[363186210,1748619053015,-413.41452465,0.00021917,2]
[363186211,1748619053024,-437.35748621,0.00021917,2]
[363186212,1748619053033,-420.0,0.00021917,2]
[363186213,1748619053042,-420.0,0.00021917,2]
[363186214,1748619053051,-1325.56,0.00021917,2]
[363186215,1748619053061,-420.0,0.00021917,2]
[363186216,1748619053069,-2716.47,0.00021917,2]
[363186217,1748619053078,-1264.47,0.00021917,2]
[363186218,1748619053087,-420.0,0.00021917,2]
[363186219,1748619053096,-420.0,0.00021917,2]
[363186220,1748619053105,-420.0,0.00021917,2]
[363186221,1748619053115,-702.43,0.00021917,2]
[363186222,1748619053124,-420.0,0.00021917,2]
[363186223,1748619053134,-735.86,0.00021917,2]
[363186224,1748619053144,-760.22,0.00021917,2]
[363186225,1748619053153,-2783.11,0.00021917,2]
[363186226,1748619053162,-676.42,0.00021917,2]
[363186227,1748619053171,-420.0,0.00021917,2]
[363186228,1748619053181,-420.0,0.00021917,2]
[363186229,1748619053190,-420.0,0.00021917,2]
[363186230,1748619053199,-503.77097076,0.00021917,2]
[363186231,1748619053208,-734.54,0.00021917,2]
[363186232,1748619053218,-466.47,0.00021917,2]
[363186233,1748619053229,-421.76156006,0.00021917,2]
[363186234,1748619053239,-504.79716905,0.00021917,2]
[363186235,1748619053248,-421.7546864,0.00021917,2]
[363186236,1748619053257,-420.0,0.00021917,2]
[363186237,1748619053266,-420.0,0.00021917,2]
[363186238,1748619053276,-420.0,0.00021917,2]
[363186239,1748619053285,-1663.09,0.00021917,2]
[363186240,1748619053294,-450.49,0.00021917,2]
[363186241,1748619053303,-6908.64,0.00021917,2]
[363186242,1748619053312,-345.5861599,0.00021917,2]
[363186243,1748619053322,-1803.22,0.00021917,2]
[363186244,1748619053331,-420.0,0.00021917,2]
[363186245,1748619053340,-420.0,0.00021917,2]
[363186246,1748619053349,-420.0,0.00021917,2]
[363186247,1748619053359,-420.0,0.00021917,2]
[363186248,1748619053368,-3069.28,0.00021917,2]
[363186249,1748619053377,-420.0,0.00021917,2]
[363186250,1748619053386,-807.7,0.00021917,2]
[363186251,1748619053395,-420.0,0.00021917,2]
[363186252,1748619053404,-420.0,0.00021917,2]
[363186253,1748619053414,-420.0,0.00021917,2]
[363186254,1748619053423,-420.0,0.00021917,2]
[363186255,1748619053433,-420.0,0.00021917,2]
[363186256,1748619053442,-420.0,0.00021917,2]
[363186257,1748619053452,-420.0,0.00021917,2]
[363186258,1748619053461,-420.0,0.00021917,2]
[363186259,1748619053470,-2553.4,0.00021917,2]
[363186260,1748619053481,-420.0,0.00021917,2]
[363186261,1748619053491,-1271.23,0.00021917,2]
[363186262,1748619053499,-1013.92,0.00021917,2]
[363186263,1748619053509,-462.07338744,0.00021917,2]
[363186264,1748619053519,-2875.31,0.00021917,2]
[363186265,1748619053528,-420.0,0.00021917,2]
[363186266,1748619053537,-420.0,0.00021917,2]
[363186267,1748619053547,-387.73417533,0.00021917,2]
[363186268,1748619053556,-420.0,0.00021917,2]
[363186269,1748619053566,-1519.84,0.00021917,2]
[363186270,1748619053576,-420.0,0.00021917,2]
[363186271,1748619053585,-460.2,0.00021917,2]
[363186272,1748619053595,-732.13,0.00021917,2]
[363186273,1748619053604,-500.0,0.00021918,2]
[363186274,1748619053614,-500.0,0.00021918,2]
[363186275,1748619053623,-404.19987841,0.00021918,2]
[363186276,1748619053633,-556.39972154,0.00021918,2]
[363186277,1748619053642,-500.0,0.00021918,2]
[363186278,1748619053652,-500.0,0.00021918,2]
[363186279,1748619053661,-500.0,0.00021918,2]
[363186280,1748619053670,-359.71421127,0.00021918,2]
[363186281,1748619053680,-500.0,0.00021918,2]
[363186282,1748619053689,-549.42797474,0.00021918,2]
[363186283,1748619053698,-500.0,0.00021918,2]
[363186284,1748619053708,-500.0,0.00021918,2]
[363186285,1748619053717,-416.34992449,0.00021918,2]
[363186286,1748619053726,-500.0,0.00021918,2]
[363186287,1748619053736,-500.0,0.00021918,2]
[363186288,1748619053746,-500.0,0.00021918,2]
[363186289,1748619053755,-500.0,0.00021918,2]
[363186290,1748619053764,-500.0,0.00021918,2]
[363186291,1748619053773,-500.0,0.00021918,2]
[363186292,1748619053785,-500.0,0.00021918,2]
[363186293,1748619053795,-500.0,0.00021918,2]
[363186294,1748619053805,-500.0,0.00021918,2]
[363186295,1748619053814,-500.0,0.00021918,2]
[363186296,1748619053823,-500.0,0.00021918,2]
[363186297,1748619053833,-500.0,0.00021918,2]
[363186298,1748619053842,-500.0,0.00021918,2]
[363186299,1748619053851,-500.0,0.00021918,2]
[363186300,1748619053862,-500.0,0.00021918,2]
[363186301,1748619053871,-500.0,0.00021918,2]
[363186302,1748619053880,-500.0,0.00021918,2]
[363186303,1748619053889,-500.0,0.00021918,2]
[363186304,1748619053898,-500.0,0.00021918,2]
[363186305,1748619053908,-500.0,0.00021918,2]
[363186306,1748619053917,-500.0,0.00021918,2]
[363186307,1748619053927,-506.99203502,0.00021918,2]
[363186308,1748619053936,-500.0,0.00021918,2]
[363186309,1748619053946,-500.0,0.00021918,2]
[363186310,1748619053956,-500.0,0.00021918,2]
[363186311,1748619053967,-500.0,0.00021918,2]
[363186312,1748619053976,-500.0,0.00021918,2]
[363186313,1748619053987,-500.0,0.00021918,2]
[363186314,1748619053996,-500.0,0.00021918,2]
[363186315,1748619054005,-500.0,0.00021918,2]
[363186316,1748619054014,-500.0,0.00021918,2]
[363186317,1748619054024,-500.0,0.00021918,2]
[363186318,1748619054033,-500.0,0.00021918,2]
[363186319,1748619054043,-500.0,0.00021918,2]
[363186320,1748619054052,-500.0,0.00021918,2]
[363186321,1748619054061,-500.0,0.00021918,2]
[363186322,1748619054070,-500.0,0.00021918,2]
[363186323,1748619054079,-500.0,0.00021918,2]
[363186324,1748619054089,-500.0,0.00021918,2]
[363186325,1748619054098,-500.0,0.00021918,2]
[363186326,1748619054107,-500.0,0.00021918,2]
[363186327,1748619054117,-500.0,0.00021918,2]
[363186328,1748619054126,-500.0,0.00021918,2]
[363186329,1748619054136,-500.0,0.00021918,2]
[363186330,1748619054145,-500.0,0.00021918,2]
[363186331,1748619054154,-500.0,0.00021918,2]
[363186332,1748619054163,-500.0,0.00021918,2]
[363186333,1748619054172,-500.0,0.00021918,2]
[363186334,1748619054182,-500.0,0.00021918,2]
[363186335,1748619054191,-500.0,0.00021918,2]
[363186336,1748619054200,-500.0,0.00021918,2]
[363186337,1748619054210,-500.0,0.00021918,2]
[363186338,1748619054219,-500.0,0.00021918,2]
[363186339,1748619054230,-500.0,0.00021918,2]
[363186340,1748619054240,-500.0,0.00021918,2]
[363186341,1748619054249,-500.0,0.00021918,2]
[363186342,1748619054259,-500.0,0.00021918,2]
[363186343,1748619054268,-500.0,0.00021918,2]
[363186344,1748619054278,-500.0,0.00021918,2]
[363186345,1748619054287,-500.0,0.00021918,2]
[363186346,1748619054296,-500.0,0.00021918,2]
[363186347,1748619054306,-500.0,0.00021918,2]
[363186348,1748619054315,-500.0,0.00021918,2]
[363186349,1748619054326,-500.0,0.00021918,2]
[363186350,1748619054335,-500.0,0.00021918,2]
[363186351,1748619054345,-500.0,0.00021918,2]
[363186352,1748619054354,-500.0,0.00021918,2]
[363186353,1748619054364,-500.0,0.00021918,2]
[363186354,1748619054374,-500.0,0.00021918,2]
[363186355,1748619054384,-500.0,0.00021918,2]
[363186356,1748619054394,-500.0,0.00021918,2]
[363186357,1748619054403,-500.0,0.00021918,2]
[363186358,1748619054414,-500.0,0.00021918,2]
[363186359,1748619054423,-500.0,0.00021918,2]
[363186360,1748619054433,-500.0,0.00021918,2]
[363186361,1748619054443,-500.0,0.00021918,2]
[363186362,1748619054453,-500.0,0.00021918,2]
[363186363,1748619054463,-500.0,0.00021918,2]
[363186364,1748619054473,-500.0,0.00021918,2]
[363186365,1748619054485,-604.5524171,0.00021918,2]
[363186366,1748619054495,-500.0,0.00021918,2]
[363186367,1748619054505,-250.0,0.00021934,2]
[363186368,1748619054515,-4049.5936825,0.00021969,6]
[363186369,1748619054526,-546.95711903,0.00021973,2]
[363186370,1748619054535,-159.57199504,0.00021973,2]
[363186371,1748619054545,-500.70476926,0.00021973,2]
[363186372,1748619054554,-500.0,0.00021973,2]
[363186373,1748619054565,-359.05901085,0.00021973,2]
[363186374,1748619054575,-217.62485625,0.00021973,2]
[363186375,1748619054585,-500.0,0.00021973,2]
[363186376,1748619054595,-547.52718811,0.00021973,2]
[363186377,1748619054605,-500.55802474,0.00021973,2]
[363186378,1748619054615,-500.0,0.00021973,2]
[363186379,1748619054626,-503.59646341,0.00021973,2]
[363186380,1748619054636,-500.0,0.00021973,2]
[363186381,1748619054647,-500.0,0.00021973,2]
[363186382,1748619054657,-500.0,0.00021973,2]
[363186383,1748619054667,-500.0,0.00021973,2]
[363186384,1748619054678,-500.0,0.00021973,2]
[363186385,1748619054688,-500.0,0.00021973,2]
[363186386,1748619054698,-501.98633899,0.00021973,2]
[363186387,1748619054708,-2650.0,0.00022,2]
[363186388,1748619054717,-10091.37987141,0.00022,2]
[363186389,1748619054728,-166.0,0.00022,2]
[363186390,1748619054738,-213.0,0.00022,2]
[363186391,1748619054748,-261038.46,0.00022,7]
[363186392,1748619054758,-248.46843206,0.00022,2]
[363186393,1748619054768,-500.0,0.00022,2]
[363186394,1748619054779,-9509.33,0.00022,7]
[363186395,1748619054795,-4000.0,0.00022,4]
[363186396,1748619054806,-619.463074,0.00022015,3]
[363186397,1748619054816,-232.8541541,0.0002211,2]
[363186398,1748619054827,-151.0,0.0002215,2]
[363186399,1748619054842,-215.0738,0.0002215,2]
[363186400,1748619054852,-64216.83,0.0002217,2]
[363186401,1748619054862,-500.0,0.00022173,2]
[363186402,1748619054875,-160.2711382,0.00022173,2]
[363186403,1748619054886,-4049.5936825,0.00022176,6]
[363186404,1748619054896,-150.0,0.0002218,2]
[363186405,1748619054906,-150.0,0.0002218,2]
[363186406,1748619054916,-593.93479267,0.0002218,2]
[363186407,1748619054927,-571.57720624,0.0002218,2]
[363186408,1748619054939,-150.0,0.0002218,2]
[363186409,1748619054950,-150.0,0.0002218,2]
[363186410,1748619054960,-150.0,0.0002218,2]
[363186411,1748619054971,-4069.86521736,0.0002218,2]
[363186412,1748619054982,-758.51593348,0.0002218,2]
[363186413,1748619054992,-632.25999931,0.0002218,2]
[363186414,1748619055002,-1012.95,0.0002219,2]
[363186415,1748619055011,-1012.95,0.0002219,2]
[363186416,1748619055024,-1012.95,0.0002219,2]
[363186417,1748619055033,-1012.95,0.0002219,2]
[363186418,1748619055044,-175.51,0.0002219,2]
[363186419,1748619055055,-500.0,0.0002219,2]
[363186420,1748619055065,-500.0,0.0002219,2]
[363186421,1748619055075,-500.0,0.0002219,2]
[363186422,1748619055084,-500.0,0.0002219,2]
[363186423,1748619055094,-500.0,0.0002219,2]
[363186424,1748619055104,-500.0,0.0002219,2]
[363186425,1748619055114,-500.0,0.0002219,2]
[363186426,1748619055124,-605.05690596,0.0002219,2]
[363186427,1748619055133,-500.0,0.0002219,2]
[363186428,1748619055143,-193.08072687,0.0002219,2]
[363186429,1748619055153,-500.0,0.0002219,2]
[363186430,1748619055163,-500.0,0.0002219,2]
[363186431,1748619055173,-500.0,0.0002219,2]
[363186432,1748619055182,-500.0,0.0002219,2]
[363186433,1748619055193,-151.756955,0.0002219,7]
[363186434,1748619055202,-151.0,0.0002219,7]
[363186435,1748619055212,-151.0,0.0002219,7]
[363186436,1748619055222,-151.0,0.0002219,7]
[363186437,1748619055233,-300.0,0.0002219,2]
[363186438,1748619055243,-300.0,0.0002219,2]
[363186439,1748619055252,-300.0,0.0002219,2]
[363186440,1748619055262,-420.0,0.00022191,2]
[363186441,1748619055272,-179.35569268,0.00022191,2]
[363186442,1748619055282,-420.0,0.00022191,2]
[363186443,1748619055292,-420.0,0.00022191,2]
[363186444,1748619055302,-579.42,0.00022191,2]
[363186445,1748619055312,-420.0,0.00022191,2]
[363186446,1748619055322,-441.8,0.00022191,2]
[363186447,1748619055332,-420.0,0.00022191,2]
[363186448,1748619055342,-420.0,0.00022191,2]
[363186449,1748619055353,-420.0,0.00022191,2]
[363186450,1748619055363,-420.0,0.00022191,2]
[363186451,1748619055373,-468.16,0.00022191,2]
[363186452,1748619055383,-591.36,0.00022191,2]
[363186453,1748619055393,-451.1,0.00022191,2]
[363186454,1748619055403,-420.0,0.00022191,2]
[363186455,1748619055413,-420.0,0.00022191,2]
[363186456,1748619055423,-420.0,0.00022191,2]
[363186457,1748619055434,-420.3,0.00022191,2]
[363186458,1748619055443,-420.0,0.00022191,2]
[363186459,1748619055454,-853.41,0.00022191,2]
[363186460,1748619055464,-420.0,0.00022191,2]
[363186461,1748619055474,-420.0,0.00022191,2]
[363186462,1748619055486,-490.43136511,0.00022191,2]
[363186463,1748619055495,-420.0,0.00022191,2]
[363186464,1748619055506,-420.0,0.00022191,2]
[363186465,1748619055516,-420.0,0.00022191,2]
[363186466,1748619055526,-525.07,0.00022191,2]
[363186467,1748619055536,-502.76,0.00022191,2]
[363186468,1748619055546,-420.0,0.00022191,2]
[363186469,1748619055556,-420.0,0.00022191,2]
[363186470,1748619055566,-1167.56,0.00022191,2]
[363186471,1748619055576,-420.0,0.00022191,2]
[363186472,1748619055587,-769.78,0.00022191,2]
[363186473,1748619055597,-524.37411755,0.00022191,2]
[363186474,1748619055607,-420.0,0.00022191,2]
[363186475,1748619055618,-420.0,0.00022191,2]
[363186476,1748619055628,-499.23,0.00022191,2]
[363186477,1748619055638,-251.2140828,0.00022191,2]
[363186478,1748619055648,-420.0,0.00022191,2]
[363186479,1748619055658,-420.0,0.00022191,2]
[363186480,1748619055668,-469.26436934,0.00022191,2]
[363186481,1748619055678,-420.0,0.00022191,2]
[363186482,1748619055688,-420.0,0.00022191,2]
[363186483,1748619055698,-420.0,0.00022191,2]
[363186484,1748619055708,-161.86898578,0.00022191,2]
[363186485,1748619055718,-531.83,0.00022191,2]
[363186486,1748619055728,-426.99154879,0.00022191,2]
[363186487,1748619055738,-420.0,0.00022191,2]
[363186488,1748619055748,-420.0,0.00022191,2]
[363186489,1748619055758,-420.0,0.00022191,2]
[363186490,1748619055768,-420.0,0.00022191,2]
[363186491,1748619055777,-420.0,0.00022191,2]
[363186492,1748619055791,-420.0,0.00022191,2]
[363186493,1748619055802,-479.53,0.00022191,2]
[363186494,1748619055812,-420.0,0.00022191,2]
[363186495,1748619055822,-165.33875953,0.00022191,2]
[363186496,1748619055834,-420.0,0.00022191,2]
[363186497,1748619055843,-420.0,0.00022191,2]
[363186498,1748619055853,-265.73,0.00022191,2]
[363186499,1748619055863,-753.24,0.00022191,2]
[363186500,1748619055873,-420.0,0.00022191,2]
[363186501,1748619055883,-420.0,0.00022191,2]
[363186502,1748619055893,-420.0,0.00022191,2]
[363186503,1748619055904,-500.0,0.00022191,2]
[363186504,1748619055915,-420.0,0.00022191,2]
[363186505,1748619055925,-476.72,0.00022191,2]
[363186506,1748619055937,-420.0,0.00022191,2]
[363186507,1748619055949,-420.0,0.00022191,2]
[363186508,1748619055960,-420.0,0.00022191,2]
[363186509,1748619055970,-420.0,0.00022191,2]
[363186510,1748619055979,-571.1,0.00022191,2]
[363186511,1748619055989,-420.0,0.00022191,2]
[363186512,1748619056000,-480.48408987,0.00022191,2]
[363186513,1748619056009,-420.0,0.00022191,2]
[363186514,1748619056019,-908.97,0.00022191,2]
[363186515,1748619056029,-420.0,0.00022191,2]
[363186516,1748619056039,-426.94044386,0.00022191,2]
[363186517,1748619056049,-420.0,0.00022191,2]
[363186518,1748619056059,-420.0,0.00022191,2]
[363186519,1748619056069,-420.0,0.00022191,2]
[363186520,1748619056079,-420.0,0.00022191,2]
[363186521,1748619056088,-420.0,0.00022191,2]
[363186522,1748619056098,-420.0,0.00022191,2]
[363186523,1748619056108,-432.46,0.00022191,2]
[363186524,1748619056117,-420.0,0.00022191,2]
[363186525,1748619056127,-170.85080996,0.00022191,2]
[363186526,1748619056137,-420.0,0.00022191,2]
[363186527,1748619056147,-420.0,0.00022191,2]
[363186528,1748619056157,-420.0,0.00022191,2]
[363186529,1748619056167,-420.0,0.00022191,2]
[363186530,1748619056178,-420.0,0.00022191,2]